bitfinex/quotes_SOLUSD_20240603
["timestamp","ask_amount","ask_price","bid_price","bid_amount"]
[1717425107798,1.40013437,164.83,164.8,45.0]
[1717425108173,61.40013437,164.83,164.78,0.8208826]
[1717425108697,1.40013437,164.83,164.78,0.8208826]
[1717425108900,63.64493437,164.83,164.78,0.8208826]
[1717425109089,0.34,164.82,164.78,0.8208826]
[1717425111218,60.0,164.81,164.78,0.8208826]
[1717425111374,0.17,164.8,164.78,0.8208826]
[1717425111708,0.34,164.8,164.78,0.8208826]
[1717425112173,2.5851,164.8,164.78,0.8208826]
[1717425112374,60.0,164.79,164.78,0.8208826]
[1717425112682,60.34,164.79,164.78,0.8208826]
[1717425113496,62.5852,164.79,164.78,0.8208826]
[1717425113696,101.9952,164.79,164.78,0.8208826]
[1717425114607,110.83567845,164.79,164.78,0.8208826]
[1717425114901,101.9952,164.79,164.7,6.45640978]
[1717425115102,2.5854,164.78,164.71,45.0]
[1717425115597,2.2455,164.77,164.71,45.0]
[1717425115773,0.34,164.76,164.71,45.0]
[1717425117004,0.34,164.77,164.71,45.0]
[1717425117582,24.666789,164.77,164.71,45.0]
[1717425117914,84.666789,164.77,164.71,45.0]
[1717425118095,86.912289,164.77,164.71,45.0]
[1717425119191,95.75276745,164.77,164.71,45.0]
[1717425119796,86.912289,164.77,164.71,45.0]
[1717425119997,95.7568658,164.77,164.71,45.0]
[1717425120310,8.8445768,164.76,164.71,45.0]
[1717425120602,33.1713658,164.77,164.72,6.4761]
[1717425120899,8.8445768,164.77,164.73,45.0]
[1717425121405,33.1698048,164.77,164.74,6.4761]
[1717425121603,33.1698048,164.77,164.75,45.0]
[1717425121806,8.8445768,164.77,164.75,45.0]
[1717425122008,7.08,164.76,164.75,45.0]
[1717425124405,10.9304479,164.83,164.78,4.4906]
[1717425124718,10.9304479,164.83,164.75,45.0]
[1717425124719,0.2,164.94,164.8,4.4902]
[1717425124924,0.2,164.94,164.9,7.08]
[1717425125141,0.2,164.94,164.91,45.0]
[1717425125828,3.84628522,164.93,164.91,45.0]
[1717425127324,3.84628522,164.93,164.91,48.6213]
[1717425127504,3.84628522,164.93,164.91,3.6213]
[1717425127709,3.84628522,164.93,164.92,3.6213]
[1717425127913,3.84628522,164.93,164.92,19.1619]
[1717425128110,0.2,164.94,164.93,3.6213]
[1717425128306,0.2,164.94,164.93,48.6213]
[1717425128506,0.2,164.94,164.93,66.4052]
[1717425129029,0.2,164.94,164.93,64.1619]
[1717425129406,0.2,164.94,164.93,66.4052]
[1717425130145,0.2,165.04,164.94,4.4862]
[1717425130304,0.2,165.04,164.99,2.2425]
[1717425130634,0.2,165.04,164.97,2.2427]
[1717425131004,0.2,165.04,164.97,45.0]
[1717425131205,0.2,165.04,164.97,47.2428]
[1717425131615,0.2,165.04,164.97,45.0]
[1717425132035,0.2,165.04,164.96,45.0]
[1717425132204,0.2,165.04,164.95,3.6213]
[1717425132408,21.2,165.02,164.93,15.5406]
[1717425132634,0.2,165.04,164.9,3.6213]
[1717425132838,21.2,165.02,164.92,2.2434]
[1717425133131,21.2,165.02,164.9,3.6213]
[1717425133132,21.2,165.02,164.93,2.2433]
[1717425133311,21.2,165.02,164.94,2.2432]
[1717425133643,21.2,165.02,164.93,2.2433]
[1717425133929,0.2,165.04,164.9,8.1087]
[1717425134148,0.2,165.04,164.94,2.2432]
[1717425134512,0.2,165.04,164.95,2.243]
[1717425134929,0.2,165.04,164.96,2.2429]
[1717425135512,0.2,165.04,164.96,2.2428]
[1717425135718,0.2,165.04,164.94,20.0]
[1717425135938,0.2,165.04,164.95,47.243]
[1717425136306,0.2,165.04,164.94,20.0]
[1717425136307,23.6419,165.04,164.92,2.2435]
[1717425136644,6.3881,165.03,164.87,4.4882]
[1717425136811,87.17938636,165.01,164.88,2.2439]
[1717425137010,99.37,164.98,164.81,3.8213]
[1717425137249,21.2,164.95,164.85,2.2443]
[1717425137809,0.34,164.97,164.86,2.2442]
[1717425138005,0.34,164.97,164.81,3.8213]
[1717425138323,60.0,164.96,164.82,2.2448]
[1717425138535,2.5832,164.95,164.82,2.2448]
[1717425139054,2.5832,164.95,164.83,2.2447]
[1717425139437,2.5832,164.95,164.81,3.8213]
[1717425139644,2.2432,164.94,164.82,2.2448]
[1717425139851,0.34,164.93,164.81,6.0663]
[1717425140053,0.34,164.93,164.81,3.8213]
[1717425140355,2.2437,164.91,164.81,0.2]
[1717425140530,0.34,164.9,164.81,0.2]
[1717425141129,0.34,164.91,164.81,0.2]
[1717425141762,2.2439,164.89,164.81,0.2]
[1717425141939,60.34,164.88,164.81,0.2]
[1717425142434,6.5335,164.85,164.81,0.2]
[1717425144977,19.91336692,164.84,164.81,0.2]
[1717425145141,6.3775,164.83,164.81,0.2]
[1717425145532,6.2075,164.83,164.81,0.2]
[1717425145770,0.34,164.82,164.81,0.2]
[1717425145958,22.7782,164.82,164.81,0.2]
[1717425146348,3.51316692,164.84,164.81,0.2]
[1717425147665,9.76956692,164.84,164.81,0.2]
[1717425147980,6.2564,164.83,164.81,0.2]
[1717425148440,6.0827,164.82,164.81,0.2]
[1717425148646,21.5025,164.82,164.81,0.2]
[1717425148869,21.6725,164.82,164.81,0.2]
[1717425149277,23.9173,164.82,164.81,0.2]
[1717425149664,21.6725,164.82,164.81,0.2]
[1717425149970,93.65148287,164.82,164.81,0.2]
[1717425150176,83.9173,164.82,164.81,0.2]
[1717425150382,116.31118287,164.82,164.81,0.2]
[1717425150600,60.0,164.8,164.71,0.2]
[1717425150903,2.5852,164.79,164.71,0.2]
[1717425151186,60.0,164.78,164.71,0.2]
[1717425151395,0.34,164.77,164.71,0.2]
[1717425151881,6.905,164.77,164.71,0.2]
[1717425152089,9.1506,164.77,164.71,0.2]
[1717425152382,16.63918287,164.77,164.71,0.2]
[1717425153281,22.9799,164.74,164.71,0.2]
[1717425153484,66.88007211,164.75,164.71,0.2]
[1717425153689,6.5867,164.72,164.71,0.2]
[1717425153983,6.9267,164.72,164.71,0.2]
[1717425154295,21.9609,164.72,164.71,0.2]
[1717425154592,22.1309,164.72,164.71,0.2]
[1717425154966,22.1309,164.72,164.69,0.3497155]
[1717425154967,21.7908,164.7,164.69,0.3497155]
[1717425155285,34.11568719,164.7,164.69,0.3497155]
[1717425155488,31.86918719,164.7,164.69,0.3497155]
[1717425155688,21.9608,164.7,164.69,0.3497155]
[1717425155990,15.3822,164.71,164.69,0.3497155]
[1717425156164,22.2971,164.7,164.69,0.3497155]
[1717425156684,33.51303747,164.7,164.69,0.3497155]
[1717425157592,6.2277,164.66,164.62,0.8208826]
[1717425157774,10.2771045,164.65,164.62,0.8208826]
[1717425158285,70.2771045,164.65,164.62,0.8208826]
[1717425158592,81.8708,164.63,164.62,0.8208826]
[1717425158792,22.2108,164.63,164.62,0.8208826]
[1717425158995,82.2108,164.63,164.62,0.8208826]
[1717425159195,60.0,164.61,164.58,0.11770042]
[1717425159368,6.5577,164.6,164.58,0.11770042]
[1717425159983,22.3693,164.59,164.58,0.11770042]
[1717425160175,82.7093,164.59,164.58,0.11770042]
[1717425160380,22.7093,164.59,164.58,0.11770042]
[1717425160594,24.9573,164.59,164.58,0.11770042]
[1717425160975,22.7093,164.59,164.58,0.11770042]
[1717425161197,24.9573,164.59,164.58,0.11770042]
[1717425161920,22.7093,164.59,164.58,0.11770042]
[1717425162712,6.3626,164.59,164.58,0.11770042]
[1717425162927,8.797918,164.59,164.58,0.11770042]
[1717425163217,23.932418,164.59,164.58,0.11770042]
[1717425163428,83.932418,164.59,164.58,0.11770042]
[1717425163593,23.932418,164.59,164.58,0.11770042]
[1717425163793,83.932418,164.59,164.58,0.11770042]
[1717425164009,8.797918,164.59,164.58,0.11770042]
[1717425164401,2.435318,164.59,164.58,0.11770042]
[1717425164799,66.3699,164.64,164.58,0.11770042]
[1717425165002,60.0,164.62,164.58,0.11770042]
[1717425165206,6.3708,164.62,164.58,0.11770042]
[1717425165396,89.431903,164.64,164.58,0.11770042]
[1717425165599,60.0,164.55,164.41,0.08064482]
[1717425165842,15.8787,164.48,164.36,0.0802155]
[1717425166123,15.8787,164.48,164.29,0.8208826]
[1717425166124,60.0,164.41,164.29,0.6010981]
[1717425166334,88.49422303,164.39,164.29,0.1010981]
[1717425166625,62.251,164.37,164.29,0.1010981]
[1717425166823,60.0,164.35,164.29,0.1010981]
[1717425167144,0.17,164.34,164.29,0.1010981]
[1717425167297,60.0,164.33,164.29,0.1010981]
[1717425167697,60.0,164.39,164.29,0.1010981]
[1717425167997,60.0,164.35,164.29,0.1010981]
[1717425168201,0.17,164.34,164.29,0.1010981]
[1717425168619,60.0,164.37,164.29,0.1010981]
[1717425168822,60.17,164.36,164.29,0.1010981]
[1717425169006,0.17,164.36,164.29,0.1010981]
[1717425169209,60.17,164.38,164.29,0.1010981]
[1717425169419,0.17,164.37,164.29,0.1010981]
[1717425169900,43.07130263,164.39,164.29,0.1010981]
[1717425170298,60.0,164.38,164.29,0.1010981]
[1717425170507,60.0,164.34,164.29,0.1010981]
[1717425171112,60.0,164.36,164.29,0.1010981]
[1717425171301,60.0,164.34,164.29,0.1010981]
[1717425171501,0.17,164.33,164.29,0.1010981]
[1717425171705,60.0,164.33,164.29,0.1010981]
[1717425171924,0.17,164.32,164.29,0.1010981]
[1717425172240,60.34,164.35,164.29,0.1010981]
[1717425172533,60.0,164.33,164.29,0.1010981]
[1717425172738,60.0,164.31,164.29,0.1010981]
[1717425172923,0.17,164.3,164.29,0.1010981]
[1717425173229,60.0,164.38,164.29,0.1010981]
[1717425173407,60.0,164.39,164.29,0.1010981]
[1717425174331,60.0,164.37,164.29,0.1010981]
[1717425175508,75.6853,164.4,164.29,0.1010981]
[1717425175706,60.0,164.42,164.29,0.1010981]
[1717425176321,46.14990404,164.42,164.3,4.7599]
[1717425176528,46.14990404,164.42,164.31,45.0]
[1717425177035,2.2505,164.41,164.31,45.0]
[1717425177219,46.14990404,164.42,164.31,45.0]
[1717425177425,106.14990404,164.42,164.31,45.0]
[1717425177826,108.40020404,164.42,164.31,45.0]
[1717425178229,0.34,164.41,164.31,45.0]
[1717425178409,46.14990404,164.42,164.29,0.1010981]
[1717425178623,60.0,164.38,164.29,0.1010981]
[1717425178826,60.0,164.4,164.29,0.1010981]
[1717425179143,60.0,164.38,164.29,0.1010981]
[1717425179827,0.17,164.37,164.29,0.1010981]
[1717425180031,24.386467,164.37,164.29,0.1010981]
[1717425180614,46.14990404,164.42,164.29,0.1010981]
[1717425180835,108.40030404,164.42,164.29,0.1010981]
[1717425181020,106.14990404,164.42,164.29,2.3530981]
[1717425181217,70.53112904,164.42,164.29,0.1010981]
[1717425181436,0.2,164.44,164.29,25.0210981]
[1717425181619,0.2,164.44,164.35,2.2512]
[1717425181816,0.2,164.44,164.33,2.2515]
[1717425182029,0.2,164.44,164.34,2.2514]
[1717425182252,0.2,164.44,164.3,65.0]
[1717425182417,60.0,164.43,164.3,45.0]
[1717425182620,84.378063,164.43,164.29,0.1010981]
[1717425182839,24.378063,164.43,164.29,0.1010981]
[1717425183039,24.378063,164.43,164.32,2.2517]
[1717425183338,60.0,164.42,164.3,2.2518]
[1717425183524,60.17,164.42,164.29,0.1010981]
[1717425183730,60.0,164.4,164.29,0.1010981]
[1717425183920,60.0,164.36,164.29,0.1010981]
[1717425184119,2.2514,164.34,164.29,0.1010981]
[1717425184319,60.0,164.32,164.29,0.1010981]
[1717425184639,20.91634252,164.39,164.29,0.1010981]
[1717425184640,74.16404252,164.39,164.29,0.1010981]
[1717425184817,0.17,164.38,164.29,0.1010981]
[1717425185331,8.10374252,164.4,164.31,2.2517]
[1717425185532,0.2,164.44,164.33,4.7599]
[1717425185720,0.2,164.44,164.37,2.2509]
[1717425186112,0.2,164.44,164.38,2.2508]
[1717425186322,0.2,164.44,164.36,2.2511]
[1717425186611,0.2,164.44,164.35,45.0]
[1717425186823,0.2,164.44,164.41,20.6567]
[1717425187145,0.2,164.44,164.42,45.0]
[1717425188716,0.2,164.44,164.42,47.2503]
[1717425188944,0.2,164.44,164.42,52.0102]
[1717425189113,0.2,164.44,164.42,49.7599]
[1717425189319,0.2,164.44,164.36,20.3811]
[1717425190055,0.2,164.44,164.31,4.7599]
[1717425190434,0.2,164.44,164.33,4.5031]
[1717425190751,0.2,164.44,164.34,2.2514]
[1717425190752,0.17,164.43,164.34,2.2514]
[1717425191049,0.2,164.44,164.31,4.7599]
[1717425191225,0.2,164.44,164.34,2.2514]
[1717425191539,2.45,164.44,164.33,2.2515]
[1717425191773,60.0,164.42,164.31,4.7599]
[1717425191928,60.0,164.42,164.3,15.9082]
[1717425192117,0.17,164.41,164.3,15.9082]
[1717425192314,0.17,164.41,164.3,18.1601]
[1717425192520,2.4205,164.41,164.3,18.1601]
[1717425192848,60.0,164.39,164.29,2.3531981]
[1717425193026,2.2507,164.4,164.29,2.3530981]
[1717425193221,62.4207,164.39,164.29,0.1010981]
[1717425193421,0.17,164.39,164.3,2.2519]
[1717425193626,62.4207,164.39,164.29,0.1010981]
[1717425194149,0.17,164.39,164.3,2.2519]
[1717425194353,2.03300597,164.41,164.29,0.1010981]
[1717425194725,2.03300597,164.41,164.3,2.2519]
[1717425194924,2.03300597,164.41,164.31,2.2518]
[1717425195124,0.2,164.44,164.34,2.2513]
[1717425195324,0.2,164.44,164.3,4.5038]
[1717425195526,2.4501,164.44,164.32,2.2515]
[1717425195725,0.2,164.44,164.31,45.0]
[1717425196050,0.2,164.44,164.35,2.2512]
[1717425196249,0.2,164.44,164.3,45.0]
[1717425196448,2.45,164.44,164.32,2.2516]
[1717425196653,62.4501,164.44,164.3,45.0]
[1717425196846,2.2502,164.43,164.32,2.2515]
[1717425197045,62.45,164.44,164.33,2.2515]
[1717425197650,0.2,164.44,164.29,45.1010981]
[1717425197948,0.2,164.44,164.34,2.2514]
[1717425198141,0.2,164.44,164.29,45.1010981]
[1717425198142,8.69294807,164.44,164.29,45.1010981]
[1717425198451,0.2,164.44,164.35,2.2512]
[1717425198653,0.2,164.44,164.3,4.6738]
[1717425198860,0.2,164.44,164.31,45.0]
[1717425199246,0.2,164.44,164.34,2.2513]
[1717425199632,0.2,164.44,164.38,2.2508]
[1717425200061,0.2,164.44,164.35,0.17]
[1717425200237,0.2,164.44,164.38,2.2508]
[1717425200432,0.5861249,164.38,164.37,2.251]
[1717425200776,0.5861249,164.38,164.37,7.0109]
[1717425200927,0.5861249,164.38,164.37,52.0109]
[1717425201353,0.5861249,164.38,164.37,2.251]
[1717425201548,0.5861249,164.38,164.37,7.0109]
[1717425201953,0.5861249,164.38,164.37,27.4531]
[1717425202259,0.5861249,164.38,164.37,45.2021]
[1717425202562,0.5861249,164.38,164.37,108.2101]
[1717425202861,0.5861249,164.38,164.37,108.5501]
[1717425203045,0.5861249,164.38,164.37,99.5461]
[1717425203277,0.2,164.44,164.43,2.2501]
[1717425203553,0.2,164.44,164.38,20.0]
[1717425203754,0.2,164.44,164.42,2.2503]
[1717425203953,0.2,164.44,164.41,2.2504]
[1717425204561,0.2,164.44,164.42,2.2503]
[1717425205165,0.2,164.44,164.33,18.2688]
[1717425205342,0.2,164.44,164.33,9.2629]
[1717425205553,0.2,164.44,164.33,4.7599]
[1717425206033,0.2,164.44,164.32,2.2515]
[1717425206234,2.2505,164.41,164.3,2.2519]
[1717425206434,2.2503,164.42,164.31,2.2517]
[1717425206659,10.74324807,164.42,164.31,2.2517]
[1717425207359,8.49294807,164.41,164.32,2.2517]
[1717425207558,60.17,164.43,164.29,0.1010981]
[1717425207763,8.49294807,164.42,164.32,2.2516]
[1717425208066,8.49294807,164.42,164.29,0.1010981]
[1717425208234,16.1593,164.44,164.34,2.2514]
[1717425208430,16.1593,164.44,164.35,2.2512]
[1717425209270,0.2,164.44,164.34,2.2513]
[1717425209859,2.4501,164.44,164.32,2.2516]
[1717425210162,2.4501,164.44,164.31,45.0]
[1717425210163,0.2,164.44,164.31,45.0]
[1717425210763,2.2502,164.43,164.32,2.2517]
[1717425210934,60.2,164.44,164.3,45.0]
[1717425210935,0.2,164.44,164.3,45.0]
[1717425211134,0.2,164.44,164.34,2.2514]
[1717425211360,0.2,164.44,164.31,4.5036]
[1717425211572,0.2,164.44,164.35,2.2512]
[1717425212182,0.2,164.44,164.34,2.2514]
[1717425212366,60.2,164.44,164.29,0.1010981]
[1717425212866,60.0,164.43,164.29,0.1010981]
[1717425213182,2.2503,164.43,164.32,2.2516]
[1717425213465,2.2503,164.42,164.31,2.2518]
[1717425213675,2.2502,164.43,164.32,2.2516]
[1717425213887,0.37,164.44,164.33,2.2515]
[1717425214057,60.34,164.43,164.31,2.2517]
[1717425214253,0.17,164.43,164.32,2.2516]
[1717425214583,0.17,164.43,164.29,0.1010981]
[1717425214584,2.2501,164.43,164.33,2.2515]
[1717425214888,2.45,164.44,164.33,2.2515]
[1717425215354,2.2502,164.43,164.33,2.2515]
[1717425215557,2.2502,164.43,164.31,2.2517]
[1717425215773,8.49294807,164.43,164.33,2.2514]
[1717425215970,0.2,164.44,164.29,6.8573981]
[1717425216161,0.2,164.44,164.34,2.2514]
[1717425216866,2.45,164.44,164.34,2.2514]
[1717425217058,0.2,164.44,164.34,2.2514]
[1717425217476,0.2,164.44,164.31,4.5035]
[1717425217783,0.2,164.44,164.32,45.0]
[1717425218001,0.2,164.44,164.33,4.5029]
[1717425218158,0.2,164.44,164.38,2.2508]
[1717425218362,0.2,164.44,164.34,45.0]
[1717425218363,0.2,164.44,164.34,81.44]
[1717425218581,0.2,164.44,164.38,4.5015]
[1717425218790,0.2,164.44,164.43,2.2501]
[1717425219397,0.2,164.44,164.42,2.2503]
[1717425219913,0.2,164.44,164.41,2.2503]
[1717425220199,0.2,164.44,164.43,2.2501]
[1717425220573,0.2,164.44,164.42,2.2502]
[1717425220996,0.2,164.44,164.43,2.2501]
[1717425221219,0.2,164.44,164.42,2.2503]
[1717425221567,0.2,164.44,164.41,2.2504]
[1717425221769,0.2,164.44,164.37,4.5018]
[1717425221770,0.2,164.44,164.42,2.2503]
[1717425222067,0.2,164.44,164.43,2.2501]
[1717425222508,0.2,164.44,164.43,6.7504]
[1717425222668,0.2,164.44,164.43,51.7504]
[1717425223401,0.2,164.44,164.43,47.2501]
[1717425223975,0.2,164.44,164.43,52.18]
[1717425224201,0.2,164.44,164.43,87.7856]
[1717425224503,0.2,164.54,164.44,6.7499]
[1717425224674,0.2,164.54,164.45,4.4997]
[1717425224876,0.2,164.54,164.46,4.4995]
[1717425225081,0.2,164.54,164.48,4.4989]
[1717425225288,0.2,164.54,164.49,2.2493]
[1717425225506,0.2,164.54,164.45,13.4991]
[1717425225808,0.2,164.54,164.49,2.2492]
[1717425226113,0.2,164.54,164.45,4.4997]
[1717425226599,0.2,164.54,164.46,45.0]
[1717425226978,0.2,164.54,164.49,2.2492]
[1717425227811,0.2,164.54,164.5,2.2492]
[1717425228006,0.2,164.54,164.46,45.0]
[1717425228211,0.2,164.54,164.49,2.2493]
[1717425228377,0.2,164.54,164.5,2.2492]
[1717425228909,0.2,164.54,164.47,4.4992]
[1717425229084,0.2,164.54,164.51,2.249]
[1717425229502,0.2,164.54,164.52,2.2489]
[1717425230892,0.2,164.54,164.51,2.249]
[1717425231098,0.2,164.54,164.53,2.2488]
[1717425233017,0.2,164.64,164.59,2.2479]
[1717425233186,0.2,164.64,164.53,9.2575]
[1717425233389,0.2,164.64,164.54,4.4973]
[1717425233606,6.7339,164.64,164.59,2.2479]
[1717425234014,6.7339,164.64,164.58,2.2481]
[1717425234192,6.7339,164.64,164.59,2.248]
[1717425234390,6.5654,164.63,164.57,2.2481]
[1717425234589,6.5654,164.63,164.54,20.0]
[1717425234796,6.5654,164.63,164.56,2.2483]
[1717425234996,6.5654,164.63,164.54,20.0]
[1717425235192,0.2,164.64,164.54,4.4973]
[1717425235403,0.2,164.64,164.58,2.248]
[1717425235717,6.5589,164.64,164.59,2.2479]
[1717425236013,6.3589,164.63,164.57,2.2481]
[1717425236185,6.3589,164.63,164.55,2.2484]
[1717425236929,6.3589,164.63,164.56,2.2483]
[1717425237292,6.3589,164.63,164.53,45.0]
[1717425237513,6.3589,164.63,164.53,47.2487]
[1717425237714,6.3589,164.63,164.54,2.2486]
[1717425238223,6.3589,164.63,164.53,45.0]
[1717425238405,6.3589,164.63,164.54,2.2486]
[1717425239291,6.3589,164.63,164.53,45.0]
[1717425239496,6.3589,164.63,164.54,2.2486]
[1717425239715,6.3589,164.63,164.56,2.2484]
[1717425239893,6.3589,164.63,164.55,2.2485]
[1717425240317,6.3589,164.63,164.53,45.0]
[1717425240638,6.3589,164.63,164.59,2.2479]
[1717425240811,16.285,164.64,164.54,4.6672]
[1717425240812,23.0839,164.62,164.54,2.2485]
[1717425241012,23.0839,164.62,164.55,47.2485]
[1717425241311,23.0839,164.62,164.56,45.0]
[1717425241531,23.0839,164.62,164.53,2.2487]
[1717425241821,23.0839,164.62,164.52,2.2489]
[1717425242028,0.17,164.61,164.51,2.2491]
[1717425242233,23.0839,164.62,164.53,2.2486]
[1717425242601,0.17,164.61,164.53,2.2486]
[1717425243203,0.17,164.61,164.54,2.2486]
[1717425243604,0.17,164.61,164.53,2.2488]
[1717425243802,83.0839,164.62,164.49,4.4986]
[1717425244009,0.34,164.61,164.5,45.0]
[1717425244532,0.34,164.61,164.52,2.2489]
[1717425244900,23.0839,164.62,164.5,45.0]
[1717425245126,23.0839,164.62,164.52,4.4978]
[1717425245315,23.0839,164.62,164.53,45.0]
[1717425245501,23.0839,164.62,164.54,4.4973]
[1717425245708,23.0839,164.62,164.55,45.0]
[1717425245927,6.5243,164.62,164.55,45.0]
[1717425246626,6.5243,164.62,164.59,2.2479]
[1717425246819,6.4949,164.64,164.6,2.2478]
[1717425247024,6.4949,164.64,164.61,2.2476]
[1717425247415,6.4949,164.64,164.6,2.2478]
[1717425247818,0.2,164.64,164.61,2.2476]
[1717425248127,0.2,164.64,164.62,2.2475]
[1717425248325,0.2,164.64,164.63,2.2474]
[1717425248529,0.2,164.64,164.62,2.2475]
[1717425249009,0.2,164.64,164.6,2.2477]
[1717425249210,0.2,164.64,164.57,49.4964]
[1717425249432,0.2,164.64,164.55,8.9941]
[1717425249633,0.2,164.64,164.54,4.4973]
[1717425249812,0.2,164.64,164.53,4.4975]
[1717425250025,0.2,164.64,164.58,2.248]
[1717425250218,0.34,164.63,164.47,13.4974]
[1717425250444,60.34,164.63,164.47,13.4974]
[1717425250628,6.5984,164.62,164.47,13.4974]
[1717425250820,0.34,164.61,164.52,2.2489]
[1717425251026,0.34,164.61,164.49,4.4987]
[1717425251253,0.34,164.61,164.52,2.2489]
[1717425251933,0.34,164.61,164.47,8.9982]
[1717425252168,62.5877,164.61,164.46,4.4993]
[1717425252523,16.5881,164.6,164.5,2.2492]
[1717425252822,0.17,164.59,164.51,2.249]
[1717425253023,16.5881,164.6,164.47,4.4991]
[1717425253242,0.17,164.59,164.47,4.4991]
[1717425253430,0.17,164.59,164.51,2.2489]
[1717425253635,16.5881,164.6,164.47,8.9984]
[1717425253834,23.2044,164.61,164.55,2.2485]
[1717425254043,23.2044,164.61,164.52,4.4979]
[1717425254044,16.5827,164.6,164.52,4.4979]
[1717425254229,16.5827,164.6,164.57,2.2481]
[1717425254544,6.6217,164.63,164.56,2.2484]
[1717425254868,6.6217,164.63,164.53,45.0]
[1717425256029,6.6217,164.63,164.56,2.2484]
[1717425256424,6.6217,164.63,164.55,2.2485]
[1717425256623,6.6217,164.63,164.56,2.2484]
[1717425256922,6.3357,164.62,164.58,2.248]
[1717425257121,6.3357,164.62,164.54,4.4973]
[1717425257366,6.3357,164.62,164.6,2.2478]
[1717425257521,6.3357,164.62,164.55,45.0]
[1717425257942,6.3357,164.62,164.59,2.2479]
[1717425258148,6.2419,164.61,164.57,2.2481]
[1717425258448,21.2781,164.63,164.56,2.2484]
[1717425258773,15.4391,164.62,164.58,2.248]
[1717425258924,6.261,164.61,164.57,2.2482]
[1717425259120,15.4391,164.6,164.56,2.2484]
[1717425259363,6.261,164.59,164.56,2.2484]
[1717425259647,6.261,164.59,164.57,2.2482]
[1717425259818,6.261,164.59,164.53,4.4976]
[1717425260021,6.261,164.59,164.57,2.2482]
[1717425260260,6.2163,164.62,164.59,2.2479]
[1717425260627,6.2163,164.62,164.54,4.4972]
[1717425260849,0.2,164.64,164.55,45.0]
[1717425261125,6.4163,164.64,164.55,45.0]
[1717425261324,6.4163,164.64,164.6,2.2478]
[1717425261748,6.4163,164.64,164.56,4.4968]
[1717425262063,6.4163,164.64,164.57,45.0]
[1717425262351,6.3878,164.63,164.57,45.0]
[1717425262543,6.5878,164.64,164.58,2.2481]
[1717425262757,6.5878,164.64,164.57,2.2481]
[1717425262933,6.5878,164.64,164.55,2.2484]
[1717425263261,60.0,164.62,164.47,4.499]
[1717425263433,0.17,164.61,164.51,2.2489]
[1717425263631,7.68666795,164.61,164.51,2.2489]
[1717425264036,7.68666795,164.61,164.51,2.249]
[1717425264555,7.68666795,164.61,164.48,4.4989]
[1717425264556,7.68666795,164.61,164.52,2.2489]
[1717425264946,2.2479,164.6,164.49,2.2493]
[1717425265266,0.34,164.59,164.51,2.2491]
[1717425265430,6.5878,164.64,164.51,8.9963]
[1717425265431,13.78346795,164.6,164.51,8.9963]
[1717425265634,6.4368,164.6,164.51,2.249]
[1717425265949,6.4368,164.6,164.48,4.499]
[1717425266136,6.4368,164.6,164.49,45.0]
[1717425266342,6.4368,164.6,164.51,2.2489]
[1717425266567,6.4368,164.6,164.49,45.0]